fUSD/lending_fUSD_20250510
["ID","MTS","AMOUNT","RATE_DAILY","PERIOD"]
[360532617,1746851648535,-1523.67,0.00019999,2]
[360532618,1746851648558,-1523.67,0.00019999,2]
[360532619,1746851648580,-400.0,0.00019999,2]
[360532620,1746851648602,-1523.67,0.00019999,2]
[360532621,1746851648624,-400.0,0.00019999,2]
[360532622,1746851648648,-1523.67,0.00019999,2]
[360532623,1746851648670,-400.0,0.00019999,2]
[360532624,1746851648694,-1523.67,0.00019999,2]
[360532625,1746851648715,-400.0,0.00019999,2]
[360532626,1746851648737,-1523.67,0.00019999,2]
[360532627,1746851648759,-400.0,0.00019999,2]
[360532628,1746851648780,-400.0,0.00019999,2]
[360532629,1746851648801,-400.0,0.00019999,2]
[360532630,1746851648823,-1523.67,0.00019999,2]
[360532631,1746851648844,-400.0,0.00019999,2]
[360532632,1746851648866,-1523.82611649,0.00019999,2]
[360532633,1746851648887,-400.0,0.00019999,2]
[360532634,1746851648909,-400.0,0.00019999,2]
[360532635,1746851648931,-400.0,0.00019999,2]
[360532636,1746851648956,-400.0,0.00019999,2]
[360532637,1746851648978,-400.0,0.00019999,2]
[360532638,1746851648999,-400.0,0.00019999,2]
[360532639,1746851649021,-247.96039032,0.00019999,2]
[360532640,1746851649043,-400.0,0.00019999,2]
[360532641,1746851649066,-400.0,0.00019999,2]
[360532642,1746851649088,-153.81713579,0.00019999,2]
[360532643,1746851649509,-246.18286421,0.00019999,2]
[360532644,1746851649535,-400.0,0.00019999,2]
[360532645,1746851649560,-400.0,0.00019999,2]
[360532646,1746851649582,-400.0,0.00019999,2]
[360532647,1746851649605,-400.0,0.00019999,2]
[360532648,1746851649628,-400.0,0.00019999,2]
[360532649,1746851649650,-400.0,0.00019999,2]
[360532650,1746851649673,-400.0,0.00019999,2]
[360532651,1746851649696,-400.0,0.00019999,2]
[360532652,1746851649718,-400.0,0.00019999,2]
[360532653,1746851649739,-240.99530172,0.00019999,2]
[360532654,1746851649763,-1640.16,0.00019999,2]
[360532655,1746851649785,-1640.16,0.00019999,2]
[360532656,1746851649809,-1640.16,0.00019999,2]
[360532657,1746851649831,-1640.16,0.00019999,2]
[360532658,1746851649855,-1640.16,0.00019999,2]
[360532659,1746851649878,-1640.16,0.00019999,2]
[360532660,1746851649900,-1640.16,0.00019999,2]
[360532661,1746851649922,-1640.16,0.00019999,2]
[360532662,1746851649947,-1640.16,0.00019999,2]
[360532663,1746851649968,-1640.16,0.00019999,2]
[360532664,1746851649990,-1640.16,0.00019999,2]
[360532665,1746851650012,-1640.16,0.00019999,2]
[360532666,1746851650034,-1640.16,0.00019999,2]
[360532667,1746851650056,-1640.16,0.00019999,2]
[360532668,1746851650078,-1640.16,0.00019999,2]
[360532669,1746851650100,-1640.16,0.00019999,2]
[360532670,1746851650127,-1640.16,0.00019999,2]
[360532671,1746851650148,-1640.16,0.00019999,2]
[360532672,1746851650171,-1640.30426892,0.00019999,2]
[360532673,1746851650198,-427.1,0.00019999,2]
[360532674,1746851650222,-427.1,0.00019999,2]
[360532675,1746851650245,-427.1,0.00019999,2]
[360532676,1746851650267,-427.1,0.00019999,2]
[360532677,1746851650289,-427.1,0.00019999,2]
[360532678,1746851650310,-427.1,0.00019999,2]
[360532679,1746851650333,-427.1,0.00019999,2]
[360532680,1746851650355,-427.1,0.00019999,2]
[360532681,1746851650376,-427.1,0.00019999,2]
[360532682,1746851650399,-427.1,0.00019999,2]
[360532683,1746851650421,-427.1,0.00019999,2]
[360532684,1746851650444,-427.1,0.00019999,2]
[360532685,1746851650466,-427.1,0.00019999,2]
[360532686,1746851650488,-427.1,0.00019999,2]
[360532687,1746851650510,-427.1,0.00019999,2]
[360532688,1746851650532,-427.1,0.00019999,2]
[360532689,1746851650554,-427.1,0.00019999,2]
[360532690,1746851650576,-427.1,0.00019999,2]
[360532691,1746851650598,-427.33326473,0.00019999,2]
[360532692,1746851650621,-400.0,0.00019999,2]
[360532693,1746851650643,-400.0,0.00019999,2]
[360532694,1746851650666,-400.0,0.00019999,2]
[360532695,1746851650688,-400.0,0.00019999,2]
[360532696,1746851650711,-400.0,0.00019999,2]
[360532697,1746851650734,-400.0,0.00019999,2]
[360532698,1746851650756,-400.0,0.00019999,2]
[360532699,1746851650779,-518.92402931,0.00019999,2]
[360532700,1746851650801,-400.0,0.00019999,2]
[360532701,1746851650823,-400.0,0.00019999,2]
[360532702,1746851650845,-400.0,0.00019999,2]
[360532703,1746851650867,-400.0,0.00019999,2]
[360532704,1746851650889,-400.0,0.00019999,2]
[360532705,1746851650910,-400.0,0.00019999,2]
[360532706,1746851650933,-400.0,0.00019999,2]
[360532707,1746851650954,-400.0,0.00019999,2]
[360532708,1746851650977,-400.0,0.00019999,2]
[360532709,1746851651000,-400.0,0.00019999,2]
[360532710,1746851651022,-400.0,0.00019999,2]
[360532711,1746851651044,-400.0,0.00019999,2]
[360532712,1746851651065,-400.0,0.00019999,2]
[360532713,1746851651086,-400.0,0.00019999,2]
[360532714,1746851651108,-400.0,0.00019999,2]
[360532715,1746851651130,-235.06307164,0.00019999,2]
[360532716,1746851651152,-910.98,0.00019999,2]
[360532717,1746851651175,-910.98,0.00019999,2]
[360532718,1746851651199,-910.98,0.00019999,2]
[360532719,1746851651222,-910.98,0.00019999,2]
[360532720,1746851651246,-910.98,0.00019999,2]
[360532721,1746851651270,-910.98,0.00019999,2]
[360532722,1746851651294,-910.98,0.00019999,2]
[360532723,1746851651318,-910.98,0.00019999,2]
[360532724,1746851651343,-910.98,0.00019999,2]
[360532725,1746851651366,-400.0,0.00019999,2]
[360532726,1746851651390,-910.98,0.00019999,2]
[360532727,1746851651415,-400.0,0.00019999,2]
[360532728,1746851651440,-910.98,0.00019999,2]
[360532729,1746851651463,-400.0,0.00019999,2]
[360532730,1746851651487,-910.98,0.00019999,2]
[360532731,1746851651511,-400.0,0.00019999,2]
[360532732,1746851651535,-910.98,0.00019999,2]
[360532733,1746851651557,-400.0,0.00019999,2]
[360532734,1746851651580,-910.98,0.00019999,2]
[360532735,1746851651602,-400.0,0.00019999,2]
[360532736,1746851651625,-910.98,0.00019999,2]
[360532737,1746851651647,-400.0,0.00019999,2]
[360532738,1746851651670,-400.0,0.00019999,2]
[360532739,1746851651694,-910.98,0.00019999,2]
[360532740,1746851651716,-400.0,0.00019999,2]
[360532741,1746851651743,-910.98,0.00019999,2]
[360532742,1746851651767,-910.98,0.00019999,2]
[360532743,1746851651789,-400.0,0.00019999,2]
[360532744,1746851651811,-242.16628381,0.00019999,2]
[360532745,1746851651833,-911.02587088,0.00019999,2]
[360532746,1746851651855,-400.0,0.00019999,2]
[360532747,1746851651877,-400.0,0.00019999,2]
[360532748,1746851651899,-400.0,0.00019999,2]
[360532749,1746851651925,-400.0,0.00019999,2]
[360532750,1746851651948,-152.58279721,0.00019999,2]
[360532751,1746851651972,-2260.53,0.00019999,2]
[360532752,1746851651995,-2260.53,0.00019999,2]
[360532753,1746851652018,-2260.53,0.00019999,2]
[360532754,1746851652042,-421.5,0.00019999,2]
[360532755,1746851652065,-2260.53,0.00019999,2]
[360532756,1746851652089,-421.5,0.00019999,2]
[360532757,1746851652115,-400.0,0.00019999,2]
[360532758,1746851652140,-2260.53,0.00019999,2]
[360532759,1746851652164,-421.5,0.00019999,2]
[360532760,1746851652191,-400.0,0.00019999,2]
[360532761,1746851652216,-421.5,0.00019999,2]
[360532762,1746851652240,-400.0,0.00019999,2]
[360532763,1746851652267,-421.5,0.00019999,2]
[360532764,1746851652292,-400.0,0.00019999,2]
[360532765,1746851652317,-2260.53,0.00019999,2]
[360532766,1746851652341,-2260.53,0.00019999,2]
[360532767,1746851652365,-421.5,0.00019999,2]
[360532768,1746851652390,-2260.53,0.00019999,2]
[360532769,1746851652414,-421.5,0.00019999,2]
[360532770,1746851652440,-400.0,0.00019999,2]
[360532771,1746851652465,-742.36224757,0.00019999,2]
[360532772,1746851652608,-450.0,0.00019985,2]
[360532773,1746851652632,-1518.16775243,0.00019999,2]
[360532774,1746851652655,-400.0,0.00019999,2]
[360532775,1746851652678,-2260.53,0.00019999,2]
[360532776,1746851652701,-400.0,0.00019999,2]
[360532777,1746851652724,-2260.53,0.00019999,2]
[360532778,1746851652746,-400.0,0.00019999,2]
[360532779,1746851652768,-2260.53,0.00019999,2]
[360532780,1746851652790,-400.0,0.00019999,2]
[360532781,1746851652812,-421.5,0.00019999,2]
[360532782,1746851652834,-2260.53,0.00019999,2]
[360532783,1746851652857,-400.0,0.00019999,2]
[360532784,1746851652879,-421.5,0.00019999,2]
[360532785,1746851652900,-2260.53,0.00019999,2]
[360532786,1746851652922,-400.0,0.00019999,2]
[360532787,1746851652945,-421.5,0.00019999,2]
[360532788,1746851652968,-2260.53,0.00019999,2]
[360532789,1746851652991,-400.0,0.00019999,2]
[360532790,1746851653013,-421.5,0.00019999,2]
[360532791,1746851653037,-2260.53,0.00019999,2]
[360532792,1746851653060,-421.5,0.00019999,2]
[360532793,1746851653083,-2260.53,0.00019999,2]
[360532794,1746851653105,-421.5,0.00019999,2]
[360532795,1746851653371,-2260.53,0.00019999,2]
[360532796,1746851653396,-421.5,0.00019999,2]
[360532797,1746851653420,-400.0,0.00019999,2]
[360532798,1746851653447,-2260.6853576,0.00019999,2]
[360532799,1746851653470,-421.5,0.00019999,2]
[360532800,1746851653493,-461.36158394,0.00019999,2]
[360532801,1746851653517,-421.5,0.00019999,2]
[360532802,1746851653541,-421.5,0.00019999,2]
[360532803,1746851653566,-421.5,0.00019999,2]
[360532804,1746851653589,-421.51035936,0.00019999,2]
[360532805,1746851653614,-658.19,0.00019999,2]
[360532806,1746851653639,-658.19,0.00019999,2]
[360532807,1746851653664,-658.19,0.00019999,2]
[360532808,1746851653689,-658.19,0.00019999,2]
[360532809,1746851653719,-658.19,0.00019999,2]
[360532810,1746851653744,-658.19,0.00019999,2]
[360532811,1746851653769,-658.19,0.00019999,2]
[360532812,1746851653793,-481.48,0.00019999,2]
[360532813,1746851653818,-658.19,0.00019999,2]
[360532814,1746851653843,-481.48,0.00019999,2]
[360532815,1746851653868,-658.19,0.00019999,2]
[360532816,1746851653892,-481.48,0.00019999,2]
[360532817,1746851653919,-658.19,0.00019999,2]
[360532818,1746851653943,-481.48,0.00019999,2]
[360532819,1746851653969,-658.19,0.00019999,2]
[360532820,1746851653996,-658.19,0.00019999,2]
[360532821,1746851654022,-658.19,0.00019999,2]
[360532822,1746851654048,-481.48,0.00019999,2]
[360532823,1746851654074,-658.19,0.00019999,2]
[360532824,1746851654099,-481.48,0.00019999,2]
[360532825,1746851654138,-658.19,0.00019999,2]
[360532826,1746851654162,-481.48,0.00019999,2]
[360532827,1746851654191,-658.19,0.00019999,2]
[360532828,1746851654215,-481.48,0.00019999,2]
[360532829,1746851654243,-658.19,0.00019999,2]
[360532830,1746851654266,-481.48,0.00019999,2]
[360532831,1746851654293,-658.19,0.00019999,2]
[360532832,1746851654320,-481.48,0.00019999,2]
[360532833,1746851654348,-658.34694247,0.00019999,2]
[360532834,1746851654372,-481.48,0.00019999,2]
[360532835,1746851654398,-481.48,0.00019999,2]
[360532836,1746851654423,-481.48,0.00019999,2]
[360532837,1746851654447,-481.48,0.00019999,2]
[360532838,1746851654471,-481.48,0.00019999,2]
[360532839,1746851654494,-481.48,0.00019999,2]
[360532840,1746851654516,-481.48,0.00019999,2]
[360532841,1746851654540,-481.48,0.00019999,2]
[360532842,1746851654564,-481.62540493,0.00019999,2]
[360532843,1746851654588,-13011.45,0.00019999,2]
[360532844,1746851654612,-13011.45,0.00019999,2]
[360532845,1746851654636,-13011.45,0.00019999,2]
[360532846,1746851654662,-6018.62259927,0.00019999,2]
[360532847,1746851654792,-450.0,0.00019996,2]
[360532848,1746851654816,-6992.82740073,0.00019999,2]
[360532849,1746851654840,-13011.45,0.00019999,2]
[360532850,1746851654864,-13011.45,0.00019999,2]
[360532851,1746851654888,-400.0,0.00019999,2]
[360532852,1746851654912,-400.0,0.00019999,2]
[360532853,1746851654936,-13011.45,0.00019999,2]
[360532854,1746851654961,-400.0,0.00019999,2]
[360532855,1746851654985,-400.0,0.00019999,2]
[360532856,1746851655008,-13011.45,0.00019999,2]
[360532857,1746851655246,-400.0,0.00019999,2]
[360532858,1746851655274,-13011.45,0.00019999,2]
[360532859,1746851655298,-400.0,0.00019999,2]
[360532860,1746851655322,-400.0,0.00019999,2]
[360532861,1746851655346,-13011.45,0.00019999,2]
[360532862,1746851655369,-400.0,0.00019999,2]
[360532863,1746851655393,-11288.47259927,0.00019999,2]
[360532864,1746851655421,-1722.97740073,0.00019999,2]
[360532865,1746851655445,-400.0,0.00019999,2]
[360532866,1746851655469,-13011.45,0.00019999,2]
[360532867,1746851655493,-400.0,0.00019999,2]
[360532868,1746851655517,-13011.45,0.00019999,2]
[360532869,1746851655540,-400.0,0.00019999,2]
[360532870,1746851655563,-13011.45,0.00019999,2]
[360532871,1746851655585,-400.0,0.00019999,2]
[360532872,1746851655609,-13011.45,0.00019999,2]
[360532873,1746851655631,-400.0,0.00019999,2]
[360532874,1746851655654,-13011.45,0.00019999,2]
[360532875,1746851655678,-13011.45,0.00019999,2]
[360532876,1746851655702,-400.0,0.00019999,2]
[360532877,1746851655725,-400.0,0.00019999,2]
[360532878,1746851655747,-13011.45,0.00019999,2]
[360532879,1746851655771,-400.0,0.00019999,2]
[360532880,1746851655796,-3996.87259927,0.00019999,2]
[360532881,1746851656216,291.52,0.00018174,2]
[360532882,1746851678270,-541.1447751,0.00019899,2]
[360532883,1746851678294,-1214.50440642,0.000199,2]
[360532884,1746851678322,-400.0,0.00019985,2]
[360532885,1746851678346,-450.0,0.00019996,2]
[360532886,1746851678370,-400.0,0.00019996,2]
[360532887,1746851678393,-400.0,0.00019996,2]
[360532888,1746851678418,-400.0,0.00019997,2]
[360532889,1746851678442,-400.0,0.00019998,2]
[360532890,1746851678464,-400.0,0.00019998,2]
[360532891,1746851678487,-400.0,0.00019998,2]
[360532892,1746851678509,-400.0,0.00019998,2]
[360532893,1746851678532,-400.0,0.00019998,2]
[360532894,1746851678555,-400.0,0.00019998,2]
[360532895,1746851678578,-400.0,0.00019998,2]
[360532896,1746851678599,-400.0,0.00019998,2]
[360532897,1746851678623,-166.92,0.00019998,2]
[360532898,1746851678648,-1784.43081848,0.00019999,2]
[360532899,1746851685580,250.0,0.00018918,2]
[360532901,1746852019280,2843.82,0.00018974,2]
[360532902,1746852030219,179.84,0.00019178,2]
[360532903,1746852084600,456.37,0.00018971,2]
[360532904,1746852148671,250.0,0.00017,2]
[360532905,1746852149731,300.0,0.00019,2]
[360532906,1746852172340,3096.42338634,0.000195,2]
[360532907,1746852211086,1000.0,0.00018964,2]
[360532908,1746852310594,156.60731,0.000248,34]
[360532909,1746852310972,156.60732,0.000273,39]
[360532910,1746852323460,150.0,0.0001898,2]
[360532911,1746852335432,-1322.0,0.000198,2]
[360532912,1746852335458,-156.60731,0.000198,23]
[360532913,1746852335483,-200.0,0.00019843,2]
[360532914,1746852335508,-250.0,0.00019843,2]
[360532915,1746852335532,-207.4,0.00019886,2]
[360532916,1746852335557,-1409.08273785,0.00019889,2]
[360532917,1746852335581,-1200.0,0.00019896,2]
[360532918,1746852335606,-400.55939886,0.00019896,2]
[360532919,1746852335632,-400.55939882,0.00019896,2]
[360532920,1746852335657,-400.55939882,0.00019897,2]
[360532921,1746852335681,-151.0,0.00019897,2]
[360532922,1746852335704,-300.0,0.00019897,2]
[360532923,1746852335728,-489.616,0.00019898,2]
[360532924,1746852335752,-14334.61575565,0.00019898,2]
[360532925,1746852376237,191.8768135,0.0003,30]
[360532926,1746852392255,375.71,0.0001896,2]
[360532927,1746852522735,150.0,0.00018986,7]
[360532928,1746852552778,193.01,0.0001895,2]
[360532932,1746852558230,282.87,0.00018955,2]
[360532950,1746852638617,-207.4,0.00019886,2]
[360532951,1746852638627,-826.98382705,0.00019897,2]
[360532952,1746852638814,-373.01617295,0.00019897,2]
[360532953,1746852638824,-300.0,0.00019897,2]
[360532954,1746852638834,-300.0,0.00019897,2]
[360532955,1746852638843,-25.50170971,0.00019897,2]
[360532956,1746852638855,-174.49829029,0.00019897,2]
[360532957,1746852638864,-151.0,0.00019897,2]
[360532958,1746852638873,-400.55939882,0.00019897,2]
[360532959,1746852638883,-200.0,0.00019898,2]
[360532960,1746852638892,-400.55939882,0.00019898,2]
[360532961,1746852638901,-28431.91554435,0.00019898,2]
[360532962,1746852638911,-400.55939882,0.00019898,2]
[360532963,1746852638920,-400.55939882,0.00019899,2]
[360532964,1746852638929,-468.1497964,0.00019899,2]
[360532965,1746852638939,-400.55939882,0.00019899,2]
[360532966,1746852638949,-1322.42263692,0.00019899,2]
[360532967,1746852638959,-1322.42263692,0.000199,2]
[360532968,1746852638969,-400.55939882,0.000199,2]
[360532969,1746852638978,-1322.42263692,0.000199,2]
[360532970,1746852638988,-1322.42263692,0.000199,2]
[360532971,1746852638997,-1322.42263692,0.000199,2]
[360532972,1746852639007,-240.28586352,0.000199,2]
[360532973,1746852639016,-8944.49599431,0.000199,2]
[360532974,1746852639026,-1322.42263692,0.000199,2]
[360532975,1746852639036,-400.55939882,0.000199,2]
[360532976,1746852639045,-565.01123404,0.000199,2]
[360532977,1746852639055,-399.15954263,0.000199,2]
[360532978,1746852639065,-1348.929,0.00019971,2]
[360532979,1746852639075,-928.0,0.00019971,2]
[360532980,1746852639084,-154.307,0.00019971,2]
[360532981,1746852639094,-5654.087,0.00019971,2]
[360532982,1746852639104,-500.0,0.00019973,2]
[360532983,1746852639113,-495.80302337,0.00019973,2]
[360532984,1746852639123,-500.0,0.00019973,2]
[360532985,1746852639133,-500.0,0.00019973,2]
[360532986,1746852639143,-400.0,0.00019985,2]
[360532987,1746852639154,-450.0,0.00019985,2]
[360532988,1746852639163,-450.0,0.00019985,2]
[360532989,1746852639172,-528.36800089,0.00019985,2]
[360532990,1746852639181,-450.0,0.00019985,2]
[360532991,1746852639190,-469.88174932,0.00019985,2]
[360532992,1746852639200,-400.0,0.00019985,2]
[360532993,1746852639210,-400.0,0.00019985,2]
[360532994,1746852639219,-183.25591853,0.00019985,2]
[360532995,1746852639228,-450.0,0.00019985,2]
[360532996,1746852639238,-400.0,0.00019985,2]
[360532997,1746852639247,-238.16067152,0.00019985,2]
[360532998,1746852639256,-400.0,0.00019985,2]
[360532999,1746852639266,-450.0,0.00019985,2]
[360533000,1746852639275,-966.99,0.00019985,2]
[360533001,1746852639285,-388.1,0.00019985,2]
[360533002,1746852639294,-450.0,0.00019985,2]
[360533003,1746852639304,-485.34677431,0.00019985,2]
[360533004,1746852639313,-400.0,0.00019985,2]
[360533005,1746852639322,-450.0,0.00019985,2]
[360533006,1746852639332,-412.81,0.00019985,2]
[360533007,1746852639342,-459.29235506,0.00019985,2]
[360533008,1746852639351,-400.0,0.00019985,2]
[360533009,1746852639360,-470.0,0.00019985,2]
[360533010,1746852639370,-450.0,0.00019985,2]
[360533011,1746852639380,-464.99,0.00019985,2]
[360533012,1746852639389,-693.3919763,0.00019987,2]
[360533013,1746852639400,-2055.95261039,0.00019995,2]
[360533014,1746852639409,-36620.9079288,0.00019996,2]
[360533015,1746852639419,-236.1332597,0.00019996,2]
[360533016,1746852639430,-1813.1088717,0.00019996,2]
[360533017,1746852639442,-2793.4928076,0.00019996,2]
[360533018,1746852639452,-30491.3136553,0.00019996,2]
[360533019,1746852639462,-343.5529864,0.00019996,2]
[360533020,1746852639471,-388.2449518,0.00019996,2]
[360533021,1746852639482,-400.0,0.00019997,2]
[360533022,1746852639491,-400.0,0.00019997,2]
[360533023,1746852639501,-250.0,0.00019997,2]
[360533024,1746852639513,-204.37686867,0.00019997,2]
[360533025,1746852639522,-323.99509766,0.00019997,2]
[360533026,1746852639532,-502.82889254,0.00019997,2]
[360533027,1746852639542,-400.0,0.00019997,2]
[360533028,1746852639552,-161.89168147,0.00019997,2]
[360533029,1746852639561,-966.99,0.00019997,2]
[360533030,1746852639571,-150.0,0.00019997,2]
[360533031,1746852639581,-163.42837987,0.00019997,2]
[360533032,1746852639591,-261.79,0.00019997,2]
[360533033,1746852639602,-400.0,0.00019997,2]
[360533034,1746852639612,-493.39900063,0.00019997,2]
[360533035,1746852639621,-450.0,0.00019997,2]
[360533036,1746852639631,-464.99,0.00019997,2]
[360533037,1746852639640,-500.0,0.00019997,2]
[360533038,1746852639650,-464.47,0.00019997,2]
[360533039,1746852639659,-400.0,0.00019997,2]
[360533040,1746852639669,-400.0,0.00019997,2]
[360533041,1746852639678,-400.0,0.00019997,2]
[360533042,1746852639688,-450.0,0.00019997,2]
[360533043,1746852639698,-450.0,0.00019997,2]
[360533044,1746852639708,-400.0,0.00019997,2]
[360533045,1746852639717,-400.0,0.00019997,2]
[360533046,1746852639727,-400.0,0.00019997,2]
[360533047,1746852639737,-400.0,0.00019997,2]
[360533048,1746852639746,-400.0,0.00019997,2]
[360533049,1746852639755,-400.0,0.00019997,2]
[360533050,1746852639765,-450.0,0.00019997,2]
[360533051,1746852639776,-400.0,0.00019997,2]
[360533052,1746852639785,-1719.59,0.00019997,2]
[360533053,1746852639794,-400.0,0.00019997,2]
[360533054,1746852639803,-450.0,0.00019997,2]
[360533055,1746852639812,-155.38460903,0.00019998,2]
[360533056,1746852639822,-176.04809276,0.00019998,2]
[360533057,1746852639831,-400.0,0.00019998,2]
[360533058,1746852639840,-376.32,0.00019998,2]
[360533059,1746852639850,-181.52681789,0.00019998,2]
[360533060,1746852639859,-966.99,0.00019998,2]
[360533061,1746852639868,-966.99,0.00019998,2]
[360533062,1746852639877,-966.99,0.00019998,2]
[360533063,1746852639887,-470.0,0.00019998,2]
[360533064,1746852639895,-450.0,0.00019998,2]
[360533065,1746852639905,-400.0,0.00019998,2]
[360533066,1746852639914,-467.25936317,0.00019998,2]
[360533067,1746852639923,-400.0,0.00019998,2]
[360533068,1746852639933,-400.0,0.00019998,2]
[360533069,1746852639942,-484.05,0.00019998,2]
[360533070,1746852639951,-450.0,0.00019998,2]
[360533071,1746852639960,-400.0,0.00019998,2]
[360533072,1746852639969,-400.0,0.00019998,2]
[360533073,1746852639978,-400.0,0.00019998,2]
[360533074,1746852639987,-400.0,0.00019998,2]
[360533075,1746852639996,-400.0,0.00019998,2]
[360533076,1746852640006,-400.0,0.00019998,2]
[360533077,1746852640015,-400.0,0.00019998,2]
[360533078,1746852640024,-779.36,0.00019998,2]
[360533079,1746852640034,-779.36,0.00019998,2]
[360533080,1746852640043,-779.36,0.00019998,2]
[360533081,1746852640052,-400.0,0.00019998,2]
[360533082,1746852640060,-400.0,0.00019998,2]
[360533083,1746852640070,-400.0,0.00019998,2]
[360533084,1746852640079,-400.0,0.00019998,2]
[360533085,1746852640089,-464.99,0.00019998,2]
[360533086,1746852640098,-464.99,0.00019998,2]
[360533087,1746852640108,-464.99,0.00019998,2]
[360533088,1746852640118,-400.0,0.00019998,2]
[360533089,1746852640127,-400.0,0.00019998,2]
[360533090,1746852640137,-788.86,0.00019998,2]
[360533091,1746852640146,-500.0,0.00019998,2]
[360533092,1746852640155,-400.0,0.00019998,2]
[360533093,1746852640164,-400.0,0.00019998,2]
[360533094,1746852640174,-764.99,0.00019998,2]
[360533095,1746852640183,-400.0,0.00019998,2]
[360533096,1746852640192,-400.0,0.00019998,2]
[360533097,1746852640201,-400.0,0.00019998,2]
[360533098,1746852640210,-400.0,0.00019998,2]
[360533099,1746852640219,-400.0,0.00019998,2]
[360533100,1746852640230,-500.0,0.00019998,2]
[360533101,1746852640239,-400.0,0.00019998,2]
[360533102,1746852640248,-400.0,0.00019998,2]
[360533103,1746852640257,-400.0,0.00019998,2]
[360533104,1746852640266,-400.0,0.00019998,2]
[360533105,1746852640276,-940.07,0.00019998,2]
[360533106,1746852640285,-400.0,0.00019998,2]
[360533107,1746852640295,-400.0,0.00019998,2]
[360533108,1746852640304,-400.0,0.00019998,2]
[360533109,1746852640313,-237.67200279,0.00019998,2]
[360533110,1746852640322,-583.08,0.00019998,2]
[360533111,1746852640331,-1093.12,0.00019998,2]
[360533112,1746852640341,-1093.12,0.00019998,2]
[360533113,1746852640350,-400.0,0.00019998,2]
[360533114,1746852640360,-400.0,0.00019998,2]
[360533115,1746852640369,-400.0,0.00019998,2]
[360533116,1746852640379,-400.0,0.00019998,2]
[360533117,1746852640388,-400.0,0.00019998,2]
[360533118,1746852640397,-1719.59,0.00019998,2]
[360533119,1746852640406,-400.0,0.00019998,2]
[360533120,1746852640415,-176.57361915,0.00019998,2]
[360533121,1746852640425,-991.76,0.00019998,2]
[360533128,1746852640505,-945.43850447,0.00019998,2]
[360533157,1746852640767,-46.32149553,0.00019998,2]
[360533159,1746852640776,-452.01570447,0.00019998,2]
[360533161,1746852640785,-450.0,0.00019998,2]
[360533163,1746852640794,-450.0,0.00019998,2]
[360533165,1746852640803,-450.0,0.00019998,2]
[360533167,1746852640812,-450.0,0.00019998,2]
[360533169,1746852640821,-482.77,0.00019998,2]
[360533171,1746852640831,-151.376141,0.00019999,2]
[360533172,1746852640839,-200.0,0.00019999,2]
[360533175,1746852640849,-151.0,0.00019999,2]
[360533177,1746852640859,-200.0,0.00019999,2]
[360533178,1746852640868,-370.0,0.00019999,2]
[360533180,1746852640877,-151.0,0.00019999,2]
[360533182,1746852640886,-151.0,0.00019999,2]
[360533185,1746852640896,-151.653482,0.00019999,2]